[Event "*** Titled Tuesday Blitz"]
[Site "Chess.com"]
[Date "2021.02.09"]
[Round "4"]
[White "Tenamu"]
[Black "enriquebutti"]
[Result "1-0"]
[WhiteElo "2404"]
[BlackElo "2174"]
[TimeControl "180+1"]
[EndTime "10:38:55 PST"]
[Termination "Tenamu won by resignation"]

1. e4 {[%clk 0:03:00.9]} 1... c5 {[%clk 0:02:59.6]} 2. Nf3 {[%clk 0:03:01]} 2...
d6 {[%clk 0:02:59.4]} 3. d4 {[%clk 0:03:01.2]} 3... cxd4 {[%clk 0:02:59.3]} 4.
Nxd4 {[%clk 0:03:02.1]} 4... Nf6 {[%clk 0:02:59.2]} 5. Nc3 {[%clk 0:03:02.3]}
5... a6 {[%clk 0:02:59.2]} 6. h3 {[%clk 0:03:01.1]} 6... e6 {[%clk 0:02:58.8]}
7. g4 {[%clk 0:03:00.5]} 7... h6 {[%clk 0:02:58.6]} 8. Bg2 {[%clk 0:03:00.5]}
8... g5 {[%clk 0:02:57.8]} 9. Be3 {[%clk 0:02:59.1]} 9... Nbd7 {[%clk
0:02:57.3]} 10. Qe2 {[%clk 0:02:57.3]} 10... Ne5 {[%clk 0:02:57]} 11. O-O-O
{[%clk 0:02:57.1]} 11... Bd7 {[%clk 0:02:56.8]} 12. Nf3 {[%clk 0:01:58]} 12...
Rc8 {[%clk 0:02:46.1]} 13. Nxe5 {[%clk 0:01:57.7]} 13... dxe5 {[%clk 0:02:45.5]}
14. h4 {[%clk 0:01:57]} 14... Rxc3 {[%clk 0:02:07.5]} 15. bxc3 {[%clk
0:01:54.3]} 15... gxh4 {[%clk 0:02:07.3]} 16. Rxh4 {[%clk 0:01:41.3]} 16... Nxe4
{[%clk 0:01:39.2]} 17. Bxe4 {[%clk 0:01:42.2]} 17... Qxh4 {[%clk 0:01:38.4]} 18.
Qd3 {[%clk 0:01:34.5]} 18... Qd8 {[%clk 0:01:29.7]} 19. c4 {[%clk 0:01:24.4]}
19... Qc8 {[%clk 0:01:21.7]} 20. c5 {[%clk 0:01:10]} 20... Be7 {[%clk
0:01:18.1]} 21. c4 {[%clk 0:00:54.3]} 21... Bc6 {[%clk 0:01:11.8]} 22. Bg6
{[%clk 0:00:38.8]} 22... Bg5 {[%clk 0:00:46.1]} 23. Bxg5 {[%clk 0:00:33.2]}
23... hxg5 {[%clk 0:00:44.7]} 24. Bh5 {[%clk 0:00:34.1]} 24... O-O {[%clk
0:00:39.8]} 25. Qd6 {[%clk 0:00:23.7]} 25... e4 {[%clk 0:00:25]} 26. Qe7 {[%clk
0:00:18.8]} 26... f6 {[%clk 0:00:21.6]} 27. Bg6 {[%clk 0:00:19.1]} 1-0

[Event "*** Titled Tuesday Blitz"]
[Site "Chess.com"]
[Date "2021.02.09"]
[Round "4"]
[White "BrandonJacobson"]
[Black "Alindsay211"]
[Result "0-1"]
[WhiteElo "2985"]
[BlackElo "2419"]
[TimeControl "180+1"]
[EndTime "10:38:56 PST"]
[Termination "Alindsay211 won by resignation"]

1. d4 {[%clk 0:03:00.9]} 1... e6 {[%clk 0:02:57.8]} 2. c4 {[%clk 0:03:01.8]}
2... d5 {[%clk 0:02:58.6]} 3. Nf3 {[%clk 0:03:01.4]} 3... Nf6 {[%clk 0:02:57.6]}
4. g3 {[%clk 0:02:58.3]} 4... Be7 {[%clk 0:02:57.2]} 5. Bg2 {[%clk 0:02:58]}
5... O-O {[%clk 0:02:56.5]} 6. O-O {[%clk 0:02:57.6]} 6... a5 {[%clk 0:02:55]}
7. Qc2 {[%clk 0:02:54.7]} 7... b6 {[%clk 0:02:54.6]} 8. Nc3 {[%clk 0:02:48.5]}
8... Bb7 {[%clk 0:02:54.4]} 9. cxd5 {[%clk 0:02:44.4]} 9... exd5 {[%clk
0:02:55.3]} 10. Rd1 {[%clk 0:02:39.5]} 10... Nbd7 {[%clk 0:02:50.2]} 11. Ne5
{[%clk 0:02:23.3]} 11... c5 {[%clk 0:02:45.1]} 12. Bg5 {[%clk 0:02:09]} 12...
cxd4 {[%clk 0:02:36.6]} 13. Nxd7 {[%clk 0:02:06.2]} 13... Qxd7 {[%clk
0:02:37.5]} 14. Rxd4 {[%clk 0:02:05.3]} 14... Rac8 {[%clk 0:02:32.6]} 15. Qd2
{[%clk 0:01:20.5]} 15... Qe6 {[%clk 0:02:24.2]} 16. Rd1 {[%clk 0:01:08.8]} 16...
h6 {[%clk 0:02:17.5]} 17. Be3 {[%clk 0:00:58.8]} 17... Ne4 {[%clk 0:02:13.5]}
18. Nxe4 {[%clk 0:00:32.3]} 18... dxe4 {[%clk 0:02:14.4]} 19. b3 {[%clk
0:00:27.8]} 19... f5 {[%clk 0:02:06.6]} 20. Rd7 {[%clk 0:00:22.9]} 20... Bc6
{[%clk 0:02:00.4]} 21. Ra7 {[%clk 0:00:22.9]} 21... Rfd8 {[%clk 0:01:58.9]} 22.
Qe1 {[%clk 0:00:23.3]} 22... Bb4 {[%clk 0:01:34.5]} 23. Rxd8+ {[%clk 0:00:19.9]}
23... Rxd8 {[%clk 0:01:32.7]} 24. Qa1 {[%clk 0:00:20.8]} 24... Be7 {[%clk
0:01:23.9]} 25. Bxb6 {[%clk 0:00:19.3]} 25... Rd2 {[%clk 0:01:21.6]} 26. Bxa5
{[%clk 0:00:17.1]} 26... Bf6 {[%clk 0:01:19.1]} 27. Qc1 {[%clk 0:00:16.8]} 27...
Rxa2 {[%clk 0:01:18.1]} 28. b4 {[%clk 0:00:16.3]} 28... Ra1 {[%clk 0:01:16.1]}
29. Qxa1 {[%clk 0:00:14.1]} 29... Bxa1 {[%clk 0:01:17]} 30. e3 {[%clk
0:00:09.4]} 30... Qd6 {[%clk 0:01:15.7]} 31. Bf1 {[%clk 0:00:09.2]} 31... Qd1
{[%clk 0:01:14.1]} 32. Kg2 {[%clk 0:00:08.8]} 32... Qf3+ {[%clk 0:01:14.1]} 33.
Kg1 {[%clk 0:00:09]} 33... Be8 {[%clk 0:01:10]} 34. b5 {[%clk 0:00:08.8]} 34...
Qd1 {[%clk 0:01:06.9]} 35. Kg2 {[%clk 0:00:08.9]} 35... Bh5 {[%clk 0:01:04.9]}
36. Bc4+ {[%clk 0:00:06.7]} 36... Kh8 {[%clk 0:01:03.6]} 37. Ra8+ {[%clk
0:00:06.5]} 37... Kh7 {[%clk 0:01:01.7]} 38. Bg8+ {[%clk 0:00:06.7]} 38... Kg6
{[%clk 0:00:58.9]} 39. Ra6+ {[%clk 0:00:06.8]} 39... Bf6 {[%clk 0:00:57.3]} 40.
Bc4 {[%clk 0:00:04.2]} 40... Bf3+ {[%clk 0:00:55]} 41. Kh3 {[%clk 0:00:04.7]}
41... Qg1 {[%clk 0:00:53.1]} 0-1

[Event "*** Titled Tuesday Blitz"]
[Site "Chess.com"]
[Date "2021.02.09"]
[Round "4"]
[White "theultimatehunter"]
[Black "TST2014"]
[Result "0-1"]
[WhiteElo "2236"]
[BlackElo "2564"]
[TimeControl "180+1"]
[EndTime "10:38:56 PST"]
[Termination "TST2014 won by resignation"]

1. d4 {[%clk 0:03:00.9]} 1... Nf6 {[%clk 0:02:57.8]} 2. c4 {[%clk 0:03:00.8]}
2... c5 {[%clk 0:02:54.4]} 3. d5 {[%clk 0:03:00.7]} 3... b5 {[%clk 0:02:54.4]}
4. cxb5 {[%clk 0:03:01]} 4... a6 {[%clk 0:02:54.4]} 5. b6 {[%clk 0:02:57.9]}
5... d6 {[%clk 0:02:53.1]} 6. Nc3 {[%clk 0:02:58.1]} 6... Nbd7 {[%clk
0:02:50.8]} 7. g3 {[%clk 0:02:56.2]} 7... g6 {[%clk 0:02:49.7]} 8. Bg2 {[%clk
0:02:56.4]} 8... Bg7 {[%clk 0:02:49.7]} 9. Nf3 {[%clk 0:02:56.9]} 9... O-O
{[%clk 0:02:49.8]} 10. O-O {[%clk 0:02:57.1]} 10... Nxb6 {[%clk 0:02:49.7]} 11.
e4 {[%clk 0:02:51.5]} 11... a5 {[%clk 0:02:48.4]} 12. Re1 {[%clk 0:02:47.8]}
12... a4 {[%clk 0:02:47.9]} 13. Rb1 {[%clk 0:02:31.1]} 13... Ng4 {[%clk
0:02:27.8]} 14. Qc2 {[%clk 0:01:50.9]} 14... Ba6 {[%clk 0:02:08.4]} 15. Bf4
{[%clk 0:01:48.7]} 15... Nc4 {[%clk 0:01:45.8]} 16. Nxa4 {[%clk 0:01:26]} 16...
Qa5 {[%clk 0:01:42.1]} 17. b3 {[%clk 0:01:20.8]} 17... Na3 {[%clk 0:01:40]} 18.
Qc1 {[%clk 0:01:08.5]} 18... Nxb1 {[%clk 0:01:35.2]} 19. Qxb1 {[%clk 0:01:09.4]}
19... Bb5 {[%clk 0:01:19.7]} 20. h3 {[%clk 0:01:08.5]} 20... Nf6 {[%clk
0:01:13.9]} 21. Bd2 {[%clk 0:00:42.9]} 21... Qa6 {[%clk 0:01:11.5]} 22. Nc3
{[%clk 0:00:43.2]} 22... Bd3 {[%clk 0:01:11.5]} 23. Qc1 {[%clk 0:00:43.2]} 23...
Nd7 {[%clk 0:01:02.2]} 24. Bh6 {[%clk 0:00:36.5]} 24... Rfb8 {[%clk 0:00:52.9]}
25. Bxg7 {[%clk 0:00:30.7]} 25... Kxg7 {[%clk 0:00:53.8]} 26. h4 {[%clk
0:00:30.9]} 26... f6 {[%clk 0:00:52.1]} 27. h5 {[%clk 0:00:20.2]} 27... Qa5
{[%clk 0:00:42.3]} 28. Re3 {[%clk 0:00:18.6]} 28... c4 {[%clk 0:00:32.4]} 29.
Nh4 {[%clk 0:00:16.4]} 29... Ne5 {[%clk 0:00:24.7]} 30. Bh3 {[%clk 0:00:16.2]}
30... cxb3 {[%clk 0:00:24.3]} 31. f4 {[%clk 0:00:15.4]} 31... b2 {[%clk
0:00:23.5]} 32. Qe1 {[%clk 0:00:14.8]} 32... b1=Q {[%clk 0:00:21.5]} 0-1

[Event "*** Titled Tuesday Blitz"]
[Site "Chess.com"]
[Date "2021.02.09"]
[Round "4"]
[White "igorcadilhac"]
[Black "SirStrateg"]
[Result "0-1"]
[WhiteElo "2300"]
[BlackElo "2582"]
[TimeControl "180+1"]
[EndTime "10:38:57 PST"]
[Termination "SirStrateg won by resignation"]

1. e4 {[%clk 0:03:00.9]} 1... d6 {[%clk 0:02:58.5]} 2. d4 {[%clk 0:03:00.6]}
2... Nf6 {[%clk 0:02:58.4]} 3. Nc3 {[%clk 0:03:00.8]} 3... c6 {[%clk 0:02:58.5]}
4. f4 {[%clk 0:02:59.8]} 4... Qa5 {[%clk 0:02:58]} 5. Bd3 {[%clk 0:02:58.4]}
5... e5 {[%clk 0:02:57.5]} 6. Nf3 {[%clk 0:02:58]} 6... exd4 {[%clk 0:02:57.5]}
7. Nxd4 {[%clk 0:02:57.8]} 7... g6 {[%clk 0:02:56.9]} 8. Nb3 {[%clk 0:02:45.9]}
8... Qc7 {[%clk 0:02:56.5]} 9. Be3 {[%clk 0:02:41.4]} 9... Bg7 {[%clk
0:02:55.7]} 10. Qd2 {[%clk 0:02:33.3]} 10... O-O {[%clk 0:02:55.2]} 11. O-O-O
{[%clk 0:02:31.6]} 11... Re8 {[%clk 0:02:55.6]} 12. h3 {[%clk 0:02:09.2]} 12...
Nbd7 {[%clk 0:02:54.4]} 13. g4 {[%clk 0:02:08.2]} 13... b5 {[%clk 0:02:51.8]}
14. g5 {[%clk 0:02:01.9]} 14... b4 {[%clk 0:02:45.4]} 15. gxf6 {[%clk
0:01:53.5]} 15... bxc3 {[%clk 0:02:45.3]} 16. Qxc3 {[%clk 0:01:54.3]} 16... Nxf6
{[%clk 0:02:39.7]} 17. Bd4 {[%clk 0:01:54]} 17... Nh5 {[%clk 0:02:32.1]} 18.
Bxg7 {[%clk 0:01:45.5]} 18... Nxg7 {[%clk 0:02:32.7]} 19. f5 {[%clk 0:01:44.6]}
19... c5 {[%clk 0:02:14]} 20. Bc4 {[%clk 0:01:03.2]} 20... Rxe4 {[%clk
0:02:04.9]} 21. fxg6 {[%clk 0:00:57.5]} 21... hxg6 {[%clk 0:01:52.5]} 22. Bd5
{[%clk 0:00:57]} 22... Bb7 {[%clk 0:01:52.8]} 23. Bxe4 {[%clk 0:00:55.8]} 23...
Bxe4 {[%clk 0:01:53.7]} 24. Rhe1 {[%clk 0:00:55.7]} 24... Bf5 {[%clk 0:01:46.2]}
25. Nd4 {[%clk 0:00:55.6]} 25... Bd7 {[%clk 0:01:29.4]} 26. Re7 {[%clk
0:00:54.6]} 26... Qd8 {[%clk 0:01:28.2]} 27. Re4 {[%clk 0:00:18.5]} 27... cxd4
{[%clk 0:01:27]} 28. Rexd4 {[%clk 0:00:19.4]} 28... Nf5 {[%clk 0:01:25.6]} 29.
R4d2 {[%clk 0:00:15.6]} 29... Rc8 {[%clk 0:01:20.2]} 30. Qa3 {[%clk 0:00:13.1]}
30... Be6 {[%clk 0:01:18.3]} 31. Kb1 {[%clk 0:00:13]} 31... Qb6 {[%clk
0:01:08.7]} 32. h4 {[%clk 0:00:11.2]} 32... Nxh4 {[%clk 0:00:59.2]} 33. Rxd6
{[%clk 0:00:09.4]} 33... Qf2 {[%clk 0:00:50.2]} 34. Rd8+ {[%clk 0:00:05]} 34...
Rxd8 {[%clk 0:00:50.5]} 35. Rxd8+ {[%clk 0:00:05.2]} 35... Kh7 {[%clk
0:00:51.2]} 36. b3 {[%clk 0:00:04.6]} 36... Qf1+ {[%clk 0:00:49]} 37. Kb2 {[%clk
0:00:04.1]} 37... Qf6+ {[%clk 0:00:48.9]} 0-1

[Event "*** Titled Tuesday Blitz"]
[Site "Chess.com"]
[Date "2021.02.09"]
[Round "4"]
[White "Grandmaster2B"]
[Black "Sergienko_Sergey"]
[Result "0-1"]
[WhiteElo "2523"]
[BlackElo "2386"]
[TimeControl "180+1"]
[EndTime "10:38:58 PST"]
[Termination "Sergienko_Sergey won by resignation"]

1. e4 {[%clk 0:03:00.9]} 1... c5 {[%clk 0:02:59.2]} 2. Nf3 {[%clk 0:02:58]} 2...
a6 {[%clk 0:02:58.6]} 3. c4 {[%clk 0:02:53.8]} 3... e6 {[%clk 0:02:58.1]} 4. Nc3
{[%clk 0:02:53.9]} 4... d6 {[%clk 0:02:57.3]} 5. d4 {[%clk 0:02:54.4]} 5... cxd4
{[%clk 0:02:56.5]} 6. Nxd4 {[%clk 0:02:55.3]} 6... Nf6 {[%clk 0:02:56.4]} 7. Be2
{[%clk 0:02:55.8]} 7... Be7 {[%clk 0:02:56]} 8. O-O {[%clk 0:02:56]} 8... O-O
{[%clk 0:02:54.2]} 9. Be3 {[%clk 0:02:56.6]} 9... b6 {[%clk 0:02:53.9]} 10. Rc1
{[%clk 0:02:57.1]} 10... Bb7 {[%clk 0:02:53.9]} 11. Qc2 {[%clk 0:02:57.1]} 11...
Qc7 {[%clk 0:02:52.7]} 12. b3 {[%clk 0:02:54.6]} 12... Nbd7 {[%clk 0:02:52.1]}
13. f4 {[%clk 0:02:54]} 13... Rac8 {[%clk 0:02:51.1]} 14. Bf3 {[%clk 0:02:52.9]}
14... Qb8 {[%clk 0:02:49.7]} 15. g4 {[%clk 0:02:52.1]} 15... Nc5 {[%clk
0:02:41]} 16. g5 {[%clk 0:02:45]} 16... Ne8 {[%clk 0:02:37.8]} 17. h4 {[%clk
0:02:38.1]} 17... b5 {[%clk 0:02:14.3]} 18. cxb5 {[%clk 0:02:30.3]} 18... axb5
{[%clk 0:02:13.5]} 19. Ndxb5 {[%clk 0:02:25.6]} 19... Ba6 {[%clk 0:01:56.2]} 20.
a4 {[%clk 0:02:11.9]} 20... Nc7 {[%clk 0:01:54.9]} 21. Be2 {[%clk 0:01:55.5]}
21... Nxb5 {[%clk 0:01:50.2]} 22. axb5 {[%clk 0:01:38.9]} 22... Bb7 {[%clk
0:01:46.7]} 23. Qb1 {[%clk 0:01:31.2]} 23... Qa8 {[%clk 0:01:38.9]} 24. Bxc5
{[%clk 0:00:59.8]} 24... Rxc5 {[%clk 0:01:37.4]} 25. Bc4 {[%clk 0:00:52.8]}
25... d5 {[%clk 0:01:32.6]} 26. exd5 {[%clk 0:00:48.2]} 26... exd5 {[%clk
0:01:32.4]} 27. Bd3 {[%clk 0:00:48.9]} 27... g6 {[%clk 0:01:21.3]} 28. b4 {[%clk
0:00:42.1]} 28... Rcc8 {[%clk 0:01:13.8]} 29. Ne2 {[%clk 0:00:39.2]} 29... Qa7+
{[%clk 0:01:09]} 30. Kh2 {[%clk 0:00:34.2]} 30... Qe3 {[%clk 0:01:05.8]} 31. Ng3
{[%clk 0:00:20]} 31... Rxc1 {[%clk 0:00:55.7]} 32. Rxc1 {[%clk 0:00:20.9]} 32...
Qxf4 {[%clk 0:00:53.8]} 33. Kh3 {[%clk 0:00:17.7]} 33... Bd6 {[%clk 0:00:47.4]}
34. Rg1 {[%clk 0:00:11.1]} 34... Bc8+ {[%clk 0:00:45.4]} 35. Nf5 {[%clk
0:00:06.6]} 35... Bxf5+ {[%clk 0:00:37]} 36. Bxf5 {[%clk 0:00:06.5]} 36... Qf3+
{[%clk 0:00:37.1]} 0-1

[Event "*** Titled Tuesday Blitz"]
[Site "Chess.com"]
[Date "2021.02.09"]
[Round "4"]
[White "LimeInTheCoconut"]
[Black "KyronGriffith"]
[Result "0-1"]
[WhiteElo "2302"]
[BlackElo "2510"]
[TimeControl "180+1"]
[EndTime "10:39:04 PST"]
[Termination "KyronGriffith won on time"]

1. d4 {[%clk 0:03:00.9]} 1... Nf6 {[%clk 0:02:59.3]} 2. c4 {[%clk 0:03:00.5]}
2... g6 {[%clk 0:02:59.5]} 3. f3 {[%clk 0:03:00.3]} 3... Bg7 {[%clk 0:02:59.2]}
4. e4 {[%clk 0:03:00.6]} 4... d6 {[%clk 0:02:59.9]} 5. Bg5 {[%clk 0:02:59.1]}
5... O-O {[%clk 0:02:59]} 6. Qd2 {[%clk 0:02:56.1]} 6... c5 {[%clk 0:02:57]} 7.
d5 {[%clk 0:02:54.6]} 7... e6 {[%clk 0:02:50.2]} 8. Ne2 {[%clk 0:02:50.2]} 8...
exd5 {[%clk 0:02:48.1]} 9. cxd5 {[%clk 0:02:51.1]} 9... b5 {[%clk 0:02:47.7]}
10. a4 {[%clk 0:02:49]} 10... b4 {[%clk 0:02:45.6]} 11. Ng3 {[%clk 0:02:39.9]}
11... Nbd7 {[%clk 0:02:40.3]} 12. Be2 {[%clk 0:02:37.4]} 12... a5 {[%clk
0:02:39.2]} 13. O-O {[%clk 0:02:37.4]} 13... Qb6 {[%clk 0:02:37]} 14. Kh1 {[%clk
0:02:31.6]} 14... Ba6 {[%clk 0:02:36.9]} 15. Bh6 {[%clk 0:01:58.2]} 15... Bxe2
{[%clk 0:02:22.7]} 16. Nxe2 {[%clk 0:01:55.7]} 16... Rfe8 {[%clk 0:02:17.4]} 17.
Bxg7 {[%clk 0:01:53.2]} 17... Kxg7 {[%clk 0:02:18.3]} 18. b3 {[%clk 0:01:47]}
18... Rac8 {[%clk 0:01:57.9]} 19. Rc1 {[%clk 0:01:36.8]} 19... c4 {[%clk
0:01:46.2]} 20. bxc4 {[%clk 0:01:28]} 20... Ne5 {[%clk 0:01:42]} 21. Qd4 {[%clk
0:01:16.4]} 21... Rc5 {[%clk 0:01:19.5]} 22. Nd2 {[%clk 0:01:13.4]} 22... Qc7
{[%clk 0:01:14.6]} 23. Nb3 {[%clk 0:00:56]} 23... Rxc4 {[%clk 0:01:14.2]} 24.
Nxa5 {[%clk 0:00:22.2]} 24... Qxa5 {[%clk 0:00:51.9]} 25. Rxc4 {[%clk
0:00:21.8]} 25... Nxc4 {[%clk 0:00:52.8]} 26. Qxc4 {[%clk 0:00:22.7]} 26... Rb8
{[%clk 0:00:48.1]} 27. Nd4 {[%clk 0:00:22.3]} 27... b3 {[%clk 0:00:35.4]} 28.
Nxb3 {[%clk 0:00:06.4]} 28... Qb6 {[%clk 0:00:35.7]} 29. Nd2 {[%clk 0:00:03.9]}
29... Qb2 {[%clk 0:00:33.8]} 30. Qc1 {[%clk 0:00:04.1]} 30... Qd4 {[%clk
0:00:32]} 31. Nf1 {[%clk 0:00:03.7]} 31... Nh5 {[%clk 0:00:31.2]} 32. a5 {[%clk
0:00:03.7]} 32... Rb2 {[%clk 0:00:28.1]} 33. a6 {[%clk 0:00:02.5]} 33... Qf2
{[%clk 0:00:27.1]} 0-1

[Event "*** Titled Tuesday Blitz"]
[Site "Chess.com"]
[Date "2021.02.09"]
[Round "4"]
[White "Rytenko_V"]
[Black "MasterMK73"]
[Result "1-0"]
[WhiteElo "2439"]
[BlackElo "2236"]
[TimeControl "180+1"]
[EndTime "10:39:04 PST"]
[Termination "Rytenko_V won by resignation"]

1. d4 {[%clk 0:03:00.9]} 1... d5 {[%clk 0:02:47.9]} 2. Nf3 {[%clk 0:03:00.5]}
2... e6 {[%clk 0:02:47.2]} 3. Bg5 {[%clk 0:03:00.7]} 3... Be7 {[%clk 0:02:45.6]}
4. Bxe7 {[%clk 0:03:01.2]} 4... Qxe7 {[%clk 0:02:44.8]} 5. Nbd2 {[%clk 0:03:01]}
5... Nd7 {[%clk 0:02:44.6]} 6. e3 {[%clk 0:03:01]} 6... Ngf6 {[%clk 0:02:43.8]}
7. c4 {[%clk 0:03:01.5]} 7... c6 {[%clk 0:02:39.8]} 8. Bd3 {[%clk 0:03:01.5]}
8... O-O {[%clk 0:02:38.8]} 9. O-O {[%clk 0:03:01.6]} 9... e5 {[%clk 0:02:39.2]}
10. dxe5 {[%clk 0:02:59.2]} 10... Nxe5 {[%clk 0:02:37.5]} 11. Be2 {[%clk
0:02:53.2]} 11... dxc4 {[%clk 0:02:33.4]} 12. Nxc4 {[%clk 0:02:51.7]} 12... Nxc4
{[%clk 0:02:33.4]} 13. Bxc4 {[%clk 0:02:51.4]} 13... Bg4 {[%clk 0:02:34]} 14. h3
{[%clk 0:02:49.2]} 14... Bh5 {[%clk 0:02:31.9]} 15. Be2 {[%clk 0:02:48.3]} 15...
Ne4 {[%clk 0:02:29.4]} 16. Nd4 {[%clk 0:02:42.6]} 16... Bxe2 {[%clk 0:02:21.8]}
17. Qxe2 {[%clk 0:02:43.5]} 17... c5 {[%clk 0:02:15.7]} 18. Nf3 {[%clk
0:02:27.8]} 18... Qf6 {[%clk 0:02:10.7]} 19. Rac1 {[%clk 0:02:24.5]} 19... b6
{[%clk 0:02:09.4]} 20. Qc4 {[%clk 0:02:20.3]} 20... Rfe8 {[%clk 0:02:07.6]} 21.
Rcd1 {[%clk 0:02:11.8]} 21... Rad8 {[%clk 0:02:03]} 22. b3 {[%clk 0:02:05.8]}
22... h6 {[%clk 0:02:01.8]} 23. Rd3 {[%clk 0:02:01.5]} 23... Rxd3 {[%clk
0:01:53.4]} 24. Qxd3 {[%clk 0:02:01.2]} 24... Re6 {[%clk 0:01:31.4]} 25. Rd1
{[%clk 0:01:56.9]} 25... Rd6 {[%clk 0:01:29.2]} 26. Qc2 {[%clk 0:01:54.1]} 26...
Rxd1+ {[%clk 0:01:27.5]} 27. Qxd1 {[%clk 0:01:54.1]} 27... Qb2 {[%clk
0:01:24.5]} 28. Qd8+ {[%clk 0:00:54.3]} 28... Kh7 {[%clk 0:01:22.7]} 29. Qd5
{[%clk 0:00:51]} 29... Qxf2+ {[%clk 0:01:14.1]} 30. Kh2 {[%clk 0:00:50.8]} 30...
Qg3+ {[%clk 0:01:00]} 31. Kg1 {[%clk 0:00:49.8]} 31... Qf2+ {[%clk 0:00:44.8]}
32. Kh2 {[%clk 0:00:49.4]} 32... Ng3 {[%clk 0:00:38]} 33. Qxf7 {[%clk
0:00:33.4]} 33... Nf1+ {[%clk 0:00:30.5]} 34. Kh1 {[%clk 0:00:33.2]} 34... Nxe3
{[%clk 0:00:28.3]} 35. Ng5+ {[%clk 0:00:33]} 35... hxg5 {[%clk 0:00:26.2]} 36.
Qxf2 {[%clk 0:00:33.3]} 36... Nd1 {[%clk 0:00:14.3]} 37. Qc2+ {[%clk 0:00:31.7]}
1-0

[Event "*** Titled Tuesday Blitz"]
[Site "Chess.com"]
[Date "2021.02.09"]
[Round "4"]
[White "hypert"]
[Black "Ladislav1969"]
[Result "1-0"]
[WhiteElo "2516"]
[BlackElo "2318"]
[TimeControl "180+1"]
[EndTime "10:39:05 PST"]
[Termination "hypert won on time"]

1. Nf3 {[%clk 0:03:00.9]} 1... Nf6 {[%clk 0:02:59.7]} 2. d4 {[%clk 0:03:01.4]}
2... g6 {[%clk 0:03:00.3]} 3. e3 {[%clk 0:02:59.2]} 3... Bg7 {[%clk 0:03:00.8]}
4. c3 {[%clk 0:02:57.5]} 4... d5 {[%clk 0:03:01.7]} 5. Nbd2 {[%clk 0:02:57.4]}
5... b6 {[%clk 0:02:58.5]} 6. Bd3 {[%clk 0:02:57.4]} 6... c5 {[%clk 0:02:58.6]}
7. O-O {[%clk 0:02:57]} 7... O-O {[%clk 0:02:57.4]} 8. e4 {[%clk 0:02:55.4]}
8... dxe4 {[%clk 0:02:46.6]} 9. Nxe4 {[%clk 0:02:56.3]} 9... Bb7 {[%clk
0:02:41.4]} 10. Qe2 {[%clk 0:02:52.4]} 10... Nxe4 {[%clk 0:02:19.2]} 11. Bxe4
{[%clk 0:02:51.9]} 11... Bxe4 {[%clk 0:02:18.7]} 12. Qxe4 {[%clk 0:02:52.8]}
12... Nd7 {[%clk 0:02:19]} 13. Rd1 {[%clk 0:02:48]} 13... cxd4 {[%clk
0:02:05.1]} 14. Nxd4 {[%clk 0:02:26.2]} 14... Nc5 {[%clk 0:01:50.7]} 15. Qf3
{[%clk 0:02:21.4]} 15... Qc7 {[%clk 0:01:39.9]} 16. Bg5 {[%clk 0:02:11.2]} 16...
h6 {[%clk 0:01:33.1]} 17. Bh4 {[%clk 0:02:10]} 17... Rad8 {[%clk 0:01:28.6]} 18.
Nc6 {[%clk 0:01:40.2]} 18... Rxd1+ {[%clk 0:01:05]} 19. Rxd1 {[%clk 0:01:41.1]}
19... g5 {[%clk 0:01:04.9]} 20. Bg3 {[%clk 0:01:40.2]} 20... Qb7 {[%clk
0:00:58.1]} 21. b4 {[%clk 0:01:30.7]} 21... Ne6 {[%clk 0:00:56.8]} 22. a4 {[%clk
0:01:22.6]} 22... b5 {[%clk 0:00:40.4]} 23. axb5 {[%clk 0:01:18.3]} 23... Qxb5
{[%clk 0:00:40.7]} 24. Nxe7+ {[%clk 0:01:17.4]} 24... Kh8 {[%clk 0:00:40.9]} 25.
Nf5 {[%clk 0:01:12.2]} 25... Nf4 {[%clk 0:00:25.2]} 26. Nxg7 {[%clk 0:01:03.9]}
26... Ne2+ {[%clk 0:00:25.3]} 27. Kh1 {[%clk 0:01:02.4]} 27... Nxg3+ {[%clk
0:00:24.2]} 28. Qxg3 {[%clk 0:00:59.3]} 28... Kxg7 {[%clk 0:00:25.1]} 29. h4
{[%clk 0:00:56]} 29... Rc8 {[%clk 0:00:15]} 30. Rc1 {[%clk 0:00:40.6]} 30... Rc4
{[%clk 0:00:14.1]} 31. hxg5 {[%clk 0:00:39.2]} 31... hxg5 {[%clk 0:00:14.4]} 32.
Kg1 {[%clk 0:00:39.2]} 32... f6 {[%clk 0:00:10.8]} 33. Ra1 {[%clk 0:00:35.2]}
33... Qb6 {[%clk 0:00:07.8]} 34. Qd3 {[%clk 0:00:33.3]} 34... Rf4 {[%clk
0:00:07]} 35. Qe3 {[%clk 0:00:33.2]} 1-0